Workbook

Sheet Forgiveness Cal Form 3508
E2: Greyed out fields have formulas and you should not overwrite them
E3: Blue fields are to be entered by you
B7: PPP Loan Forgiveness Calculation:
B9: Payroll and Nonpayroll Costs
A10: Line 1 | B10: Payroll Costs (enter the amount from PPP Schedule A, line 10): | C10: =+'PPP Schedule A'!C29 -> 81155
A11: Line 2 | B11: Business Mortgage Interest Payments: | C11: 15000
A12: Line 3 | B12: Business Rent or Lease Payments: | C12: 45000 | F12: =+C11+C12+C13 -> 70000 | G12: =Total Non-payroll costs
A13: Line 4 | B13: Business Utility Payments: | C13: 10000
B15: Adjustments for Full-Time Equivalency (FTE) and Salary/Hourly Wage Reductions
A16: Line 5 | B16: Total Salary/Hourly Wage Reduction (enter the amount from PPP Schedule A, line 3): | C16: =+'PPP Schedule A'!C14 -> 6000
A17: Line 6 | B17: Add the amounts on lines 1, 2, 3, and 4, then subtract the amount entered in line 5: | C17: =+C10+C11+C12+C13-C16 -> 145155
A18: Line 7 | B18: FTE Reduction Quotient (enter the number from PPP Schedule A, line 13): | C18: =+'PPP Schedule A'!C41 -> 0.5
B20: Potential Forgiveness Amounts
A21: Line 8. | B21: Modified Total (multiply line 6 by line 7): | C21: =+C17*C18 -> 72577.5
A22: Line 9. | B22: PPP Loan Amount: | C22: 200000
A23: Line 10. | B23: Payroll Cost 75% Requirement (divide line 1 by 0.75): | C23: =+C10/0.75 -> 108206.6667
B25: Forgiveness Amount
A26: Line 11 | B26: Forgiveness Amount (enter the smallest of lines 8, 9, and 10): | C26: =MIN(C21:C23) -> 72577.5
B28: Amount not forgiven and due in 24 months from loan disbursement date | C28: =+C22-C26 -> 127422.5

Sheet PPP Schedule A
A5: Greyed out fields have formulas and you should not overwrite them
A6: Blue fields are to be entered by you
B7: PPP Schedule A
B8: Read All Instructions to Form 3508, Schedule A and Schedule A Worksheet Before Completing
B9: This Worksheet is prepared for use only by a non-seasonal employer
B10: PPP Schedule A Worksheet, Table 1 Totals
A12: Line 1. | B12: Enter Cash Compensation (Box 1) from PPP Schedule A Worksheet, Table 1: | C12: =+'Sch A Worksheet'!J19:J19 -> 22000
A13: Line 2. | B13: Enter Average FTE (Box 2) from PPP Schedule A Worksheet, Table 1: | C13: =+'Sch A Worksheet'!L19 -> 3
A14: Line 3. | B14: Enter Salary/Hourly Wage Reduction (Box 3) from PPP Schedule A Worksheet, Table 1: | C14: =+'Sch A Worksheet'!N19 -> 6000
B15: If the average annual salary or hourly wage for each employee listed on the PPP Schedule A Worksheet, Table 1 during the Covered Period or the Alternative Payroll Covered Period was at least 75% of such employee’s average annual salary or hourly wage between January 1, 2020 and March 31, 2020, check here and enter 0 on line 3.
B16: PPP Schedule A Worksheet, Table 2 Totals
A17: Line 4. | B17: Enter Cash Compensation (Box 4) from PPP Schedule A Worksheet, Table 2: | C17: =+'Sch A Worksheet'!J35 -> 30770
A18: Line 5. | B18: Enter Average FTE (Box 5) from PPP Schedule A Worksheet, Table 2: | C18: =+'Sch A Worksheet'!L35 -> 2
B19: Non-Cash Compensation Payroll Costs During the Covered Period or the Alternative Payroll Covered Period
A20: Line 6 | B20: Total amount paid by Borrower for employer contributions for employee health insurance: | C20: 3000
A21: Line 7 | B21: Total amount paid by Borrower for employer contributions to employee retirement plans: | C21: 8000 | E21: 15
A22: Line 8 | B22: Total amount paid by Borrower for employer state and local taxes assessed on employee compensation: | C22: 2000
B24: Compensation to Owners
A25: Line 9 | B25: Total amount paid to owner-employees/self-employed individual/general partners from Owner Comp Worksheet: | C25: =+'Owner Comp Worksheet'!I19 -> 15385
B26: This amount may not be included in PPP Schedule A Worksheet, Table 1 or 2. If there is more than one individual included, attach a separate table that lists the names of and payments to each.
B28: Total Payroll Costs
A29: Line 10 | B29: Payroll Costs (add lines 1, 4, 6, 7, 8, and 9): | C29: =+C12+C17+C20+C21+C22+C25 -> 81155
B30: Full-Time Equivalency (FTE) Reduction Calculation
B31: If you have not reduced the number of employees or the average paid hours of your employees between
B32: January 1, 2020 and the end of the Covered Period, check the box , skip lines 11 and 12 and enter 1.0 on line 13.
B34: Reference period for FTE Denominator
B35: Option 1: The average number of FTE employees on payroll per month employed by the Borrower between February 15, 2019 and June 30, 2019 | C35: 10
B36: Option 2: The average number of FTE employees on payroll per month employed by the Borrower between January 1, 2020 and February 29, 2020 | C36: 15
A38: Line 11 | B38: Average FTE during the Borrower’s chosen reference period: | C38: =MIN(C34:C35) -> 10
A40: Line 12 | B40: Total Average FTE during the covered period (add lines 2 and 5): | C40: =+C13+C18 -> 5
A41: Line 13 | B41: FTE Reduction Quotient (divide line 12 by line 11) or enter 1.0 if FTE Safe Harbor is met: | C41: =+C40/C38 -> 0.5

Sheet Sch A Worksheet
Q1: Greyed out fields have formulas and you should not enter data
A2: PPP Schedule A Worksheet | Q2: Blue fields are to be entered by you
A3: Read All Instructions to Form 3508, Schedule A and Schedule A Worksheet Before Completing
A4: •Do not include in Table 1 or Table 2 below owner-employees (shareholders working in the business), general partners including active LLC members and member managers and self-employed (i.e. sole proprietors). All of these individuals are not counted in the FTE formula and their cash compensation during the covered period is reported on PPP Schedule A, Line 9.
A5: •Do not enter more than $15,385 in Cash Compensation in Table 1 or Table 2 for any individual employee.
A6: Table 1: List employees who:
A7: • Were employed by the Borrower at any point during the Covered Period or the Alternative Payroll Covered Period whose principal place of residence is in the United States; and
A8: • Received compensation from the Borrower at an annualized rate of less than or equal to $100,000 for all pay periods in 2019 or were not employed by the Borrower at any point in 2019.
A9: Employee's Name | G9: Employee Identifier | J9: Cash Compensation During Covered Period | L9: Average FTE | N9: Salary / Hourly Wage Reduction
J10: 10000 | L10: 1 | N10: 2000
J11: 8000 | L11: 1 | N11: 1000
J12: 4000 | L12: 1 | N12: 3000
A18: FTE Reduction Exceptions: | J18: 0
A19: Totals: | I19: Box 1 | J19: =SUM(J10:J18) -> 22000 | K19: Box 2 | L19: =SUM(K10:L18) -> 3 | M19: Box 3 | N19: =SUM(M10:N18) -> 6000
A21: Insert additional rows if needed by in Table 1 if needed
A23: Table 2: List employees who:
A24: • Were employed by the Borrower at any point during the Covered Period or the Alternative Payroll Covered Period whose principal place of residence is in the United States; and
A25: • Received compensation from the Borrower at an annualized rate of more than $100,000 for any pay period in 2019
A26: Employee's Name | G26: Employee Identifier | J26: Cash Compensation During Covered Period | L26: Average FTE | M26: Do not enter more than $15,385 in Cash Compensation in Table 1 or Table 2 for any individual employee
J27: 15385 | L27: 1
J28: 15385 | L28: 1
A35: Totals: | I35: Box 4 | J35: =SUM(J27:J34) -> 30770 | K35: Box 5 | L35: =SUM(K27:L34) -> 2
A37: Insert additional rows if needed by in Table 2 if needed
A39: FTE Reduction Safe Harbor:
A40: Step 1. Enter the borrower’s total average FTE between February 15, 2020 and April 26, 2020. Follow the same method that was used to calculate Average FTE in the PPP Schedule A Worksheet Tables. Sum across all employees and enter:
A42: Step 2. Enter the borrower’s total FTE in the Borrower’s pay period inclusive of February 15, 2020. Follow the same method that was used in step 1:
A43: Step 3. If the entry for step 2 is greater than step 1, proceed to step 4. Otherwise, the FTE Reduction Safe Harbor is not applicable and the Borrower must complete line 13 of PPP Schedule A by dividing line 12 by line 11 of that schedule.
A44: Step 4. Enter the borrower’s total FTE as of June 30, 2020:--------------------------------------------------------------------->
A45: Step 5. If the entry for step 4 is greater than or equal to step 2, enter 1.0 on line 13 of PPP Schedule A; the FTE Reduction Safe Harbor has been satisfied. Otherwise, the FTE Reduction Safe Harbor does not apply and the borrower must complete line 13 of PPP Schedule A by dividing line 12 by line 11 of that schedule.

Sheet Owner Comp Worksheet
K1: Greyed out fields have formulas and you should not enter data
K2: Blue fields are to be entered by you
A7: Compensation to Owners Worksheet
A10: Owner Employee/General Partner/Active LLC Member/Self Employed Individual | G10: Employee Identifier | I10: Cash Compensation During Covered Period
I11: 15385
A19: Totals: | I19: =SUM(I11:I18) -> 15385
A21: Do insert additional rows as needed
